bitfinex/quotes_SOLUSD_20251206
["timestamp","ask_amount","ask_price","bid_price","bid_amount"]
[1765060210060,13.48948494,132.23,132.19,0.2]
[1765060210263,16.60258035,132.23,132.19,12.97168526]
[1765060210461,16.60258035,132.23,132.19,7.76478067]
[1765060210870,0.72,132.25,132.22,5.52690459]
[1765060211076,9.04,132.24,132.22,5.30690459]
[1765060211278,8.32,132.25,132.22,5.52690459]
[1765060211466,8.32,132.25,132.22,0.1]
[1765060211672,0.72,132.24,132.22,0.1]
[1765060212273,18.90135597,132.27,132.22,0.1]
[1765060212274,8.28051019,132.27,132.23,5.42690459]
[1765060212483,8.28051019,132.27,132.24,5.20690459]
[1765060212653,7.56051019,132.27,132.22,21.67771447]
[1765060212854,5.20690459,132.23,132.22,0.1]
[1765060213053,13.52690459,132.23,132.22,0.1]
[1765060213260,14.24690459,132.23,132.22,0.1]
[1765060213581,9.04,132.23,132.22,0.1]
[1765060213977,16.60258035,132.23,132.22,0.1]
[1765060217190,21.80948494,132.23,132.22,0.1]
[1765060220982,24.83829651,132.23,132.22,0.1]
[1765060223493,30.0452011,132.23,132.22,0.1]
[1765060223990,24.83829651,132.23,132.22,0.1]
[1765060226784,19.63139192,132.23,132.22,0.1]
[1765060226982,21.80948494,132.23,132.22,0.1]
[1765060230994,16.60258035,132.23,132.22,0.1]
[1765060231301,15.88258035,132.23,132.22,0.1]
[1765060231886,16.57258035,132.23,132.22,0.1]
[1765060233802,15.88258035,132.23,132.22,0.1]
[1765060233992,5.20690459,132.24,132.22,0.32]
[1765060233993,8.32,132.24,132.22,0.32]
[1765060235409,8.32,132.24,132.22,0.1]
[1765060235619,7.56258035,132.23,132.22,0.1]
[1765060235775,8.25258035,132.23,132.22,0.1]
[1765060241208,13.45948494,132.23,132.22,0.1]
[1765060242722,8.25258035,132.23,132.22,0.1]
[1765060243120,7.56225023,132.24,132.22,0.1]
[1765060243424,8.32,132.23,132.22,0.1]
[1765060247336,128.17055076,132.25,132.22,0.32]
[1765060247509,8.32,132.24,132.22,5.52690459]
[1765060247710,8.32,132.24,132.22,0.32]
[1765060247960,9.01,132.24,132.22,0.1]
[1765060256146,8.32,132.24,132.22,5.30690459]
[1765060256345,8.32,132.24,132.22,5.52690459]
[1765060256546,8.32,132.24,132.22,5.30690459]
[1765060259136,8.32,132.24,132.22,5.52690459]
[1765060259647,123.19849566,132.29,132.23,5.42690459]
[1765060259821,123.19849566,132.29,132.27,5.20690459]
[1765060259822,104.3,132.29,132.27,5.20690459]
[1765060260020,0.71,132.28,132.24,0.22]
[1765060260256,8.32,132.27,132.24,5.20690459]
[1765060260435,8.32,132.27,132.24,3.33043306]
[1765060260632,0.71,132.26,132.24,3.33043306]
[1765060261969,16.59051792,132.27,132.24,3.33043306]
[1765060263226,16.59051792,132.27,132.25,3.33043306]
[1765060264337,8.32,132.27,132.26,3.33043306]
[1765060264660,8.32,132.27,132.26,3.55043306]
[1765060265529,120.88966538,132.29,132.26,3.55043306]
[1765060265749,120.17966538,132.29,132.28,3.33043306]
[1765060266350,120.88966538,132.29,132.28,3.33043306]
[1765060267063,120.17966538,132.29,132.28,3.33043306]
[1765060268545,112.62,132.29,132.28,3.33043306]
[1765060269740,8.32,132.31,132.28,11.11015486]
[1765060269940,8.32,132.31,132.3,3.33043306]
[1765060270263,8.32,132.31,132.29,3.33043306]
[1765060270487,9.03,132.31,132.29,3.33043306]
[1765060272353,9.03,132.31,132.3,3.33043306]
[1765060272558,8.32,132.31,132.3,3.33043306]
[1765060272751,8.26649982,132.34,132.3,3.55043306]
[1765060272956,8.26649982,132.34,132.32,3.33043306]
[1765060273144,8.32,132.33,132.32,3.33043306]
[1765060273468,9.03,132.33,132.32,3.33043306]
[1765060288882,9.03,132.33,132.31,3.33043306]
[1765060297793,8.32,132.33,132.29,0.22]
[1765060297993,8.98,132.33,132.31,3.33043306]
[1765060303775,8.98,132.33,132.31,10.8884197]
[1765060303975,8.98,132.33,132.31,3.33043306]
[1765060304694,8.98,132.33,132.32,3.33043306]
[1765060304898,8.32,132.33,132.32,3.33043306]
[1765060305193,7.55458185,132.37,132.32,11.10786957]
[1765060305379,8.32,132.38,132.35,3.33043306]
[1765060305569,0.66,132.37,132.35,3.33043306]
[1765060306796,0.66,132.37,132.35,10.88603795]
[1765060307099,8.32,132.38,132.35,10.88603795]
[1765060307100,8.98,132.38,132.35,10.88603795]
[1765060307301,8.98,132.38,132.36,3.33043306]
[1765060308030,0.66,132.37,132.36,3.33043306]
[1765060308185,0.66,132.37,132.35,10.88603795]
[1765060308799,0.66,132.37,132.35,3.33043306]
[1765060308988,11.65043306,132.36,132.31,23.86677005]
[1765060309187,112.62,132.36,132.23,0.99999999]
[1765060309391,112.62,132.36,132.28,7.55959873]
[1765060309392,3.33043306,132.31,132.28,7.55959873]
[1765060309705,8.32,132.31,132.28,7.55959873]
[1765060309873,0.66,132.3,132.28,7.55959873]
[1765060311003,9.02,132.31,132.28,10.89003179]
[1765060311183,0.7,132.3,132.27,7.56012698]
[1765060313111,8.25864972,132.3,132.26,11.11117285]
[1765060313317,8.25864972,132.3,132.26,10.89117285]
[1765060313532,0.69,132.29,132.26,10.89117285]
[1765060313828,0.69,132.29,132.26,11.11117285]
[1765060315814,8.24923698,132.29,132.25,23.87017986]
[1765060315999,11.57967004,132.29,132.24,10.89207095]
[1765060316314,0.69,132.28,132.25,7.56133316]
[1765060317717,0.69,132.3,132.26,3.55043306]
[1765060318017,0.69,132.3,132.27,3.33043306]
[1765060320533,8.32,132.31,132.28,5.4215161]
[1765060320729,8.32,132.31,132.28,12.98100928]
[1765060320936,8.32,132.31,132.29,5.4215161]
[1765060322527,8.32,132.33,132.3,5.4215161]
[1765060322707,8.32,132.35,132.32,5.2015161]
[1765060322908,9.01,132.35,132.34,5.2015161]
[1765060323826,21.76729536,132.35,132.3,5.2015161]
[1765060324006,5.8915161,132.34,132.29,21.5103801]
[1765060324411,0.69,132.33,132.3,5.2015161]
[1765060324927,8.24720184,132.33,132.3,5.2015161]
[1765060325426,8.24720184,132.33,132.29,21.5103801]
[1765060325633,0.69,132.32,132.29,21.5103801]
[1765060327012,8.2475694,132.32,132.28,5.2015161]
[1765060327325,16.5675694,132.32,132.28,12.76121952]
[1765060327509,0.69,132.31,132.28,12.76121952]
[1765060329340,0.69,132.31,132.28,7.55970342]
[1765060333068,8.24819843,132.31,132.27,12.98170785]
[1765060333338,8.24819843,132.31,132.27,12.76170785]
[1765060333528,0.69,132.3,132.27,12.76170785]
[1765060334133,0.69,132.3,132.27,12.98170785]
[1765060336057,0.69,132.3,132.28,5.2015161]
[1765060338359,0.69,132.3,132.28,12.76121442]
[1765060338536,7.55819843,132.31,132.28,5.2015161]
[1765060338731,0.69,132.3,132.27,7.56010415]
[1765060338941,0.69,132.3,132.26,29.07114376]
[1765060339473,13.45039474,132.3,132.26,23.86962766]
[1765060339651,13.45039474,132.3,132.26,7.56076366]
[1765060339960,0.69,132.29,132.26,7.56076366]
[1765060344254,8.24929572,132.29,132.25,12.76277637]
[1765060344454,13.45081182,132.29,132.25,7.56126027]
[1765060344649,0.69,132.28,132.25,7.56126027]
[1765060344852,0.69,132.28,132.24,29.07224946]
[1765060347446,0.69,132.28,132.24,29.29224946]
[1765060348772,0.69,132.28,132.25,5.2015161]
[1765060349178,0.69,132.28,132.24,29.07224946]
[1765060350072,0.69,132.28,132.25,5.2015161]
[1765060350272,8.32,132.29,132.26,5.2015161]
[1765060350454,8.32,132.29,132.27,5.2015161]
[1765060350854,9.01,132.29,132.27,5.2015161]
[1765060352680,9.01,132.29,132.26,12.98226063]
[1765060357090,9.01,132.29,132.26,12.76226063]
[1765060357378,8.32,132.29,132.26,12.76226063]
[1765060357567,0.69,132.28,132.26,12.76226063]
[1765060357873,0.69,132.28,132.27,5.2015161]
[1765060358879,0.69,132.28,132.26,12.76226063]
[1765060362381,0.69,132.31,132.27,5.4215161]
[1765060362589,0.69,132.33,132.3,5.2015161]
[1765060362887,0.69,132.33,132.31,5.2015161]
[1765060365262,0.69,132.34,132.32,5.2015161]
[1765060365481,0.69,132.34,132.33,5.2015161]
[1765060365891,0.69,132.34,132.32,5.2015161]
[1765060366388,0.69,132.34,132.33,5.2015161]
[1765060367780,0.69,132.34,132.31,12.75933397]
[1765060367978,8.24634764,132.34,132.31,5.2015161]
[1765060368386,0.69,132.33,132.31,5.2015161]
[1765060372882,0.69,132.33,132.31,12.75951795]
[1765060375676,0.69,132.33,132.31,5.2015161]
[1765060376608,0.69,132.33,132.31,12.7593835]
[1765060377996,0.66,132.34,132.32,5.2015161]
[1765060378292,8.98,132.35,132.32,5.2015161]
[1765060378497,0.66,132.34,132.32,5.2015161]
[1765060379076,0.66,132.34,132.32,12.75893731]
[1765060381001,0.66,132.34,132.3,12.75965551]
[1765060381511,8.21640225,132.34,132.3,12.75965551]
[1765060381878,0.66,132.33,132.3,12.75965551]
[1765060382489,0.66,132.33,132.3,10.8856221]
[1765060383704,0.66,132.33,132.29,26.45589027]
[1765060383898,8.21689624,132.33,132.29,7.55915035]
[1765060384102,0.66,132.33,132.3,3.32748269]
[1765060384308,0.66,132.32,132.3,3.32748269]
[1765060385116,0.66,132.32,132.3,10.88590951]
[1765060385487,0.66,132.32,132.3,7.55842682]
[1765060396620,0.66,132.33,132.3,10.88590951]
[1765060408724,0.66,132.33,132.3,7.55842682]
[1765060412331,15.87593581,132.35,132.31,3.54748269]
[1765060412632,0.69,132.34,132.31,3.54748269]
[1765060412924,0.69,132.36,132.32,0.22]
[1765060413162,4.01748269,132.35,132.3,29.78235697]
[1765060413309,11.57335777,132.35,132.3,29.78235697]
[1765060413504,0.69,132.34,132.3,29.78235697]
[1765060422034,0.69,132.34,132.33,3.32748269]
[1765060422233,0.69,132.34,132.32,3.32748269]
[1765060423236,0.69,132.34,132.33,7.55686541]
[1765060423620,0.69,132.34,132.33,10.8843481]
[1765060426032,0.69,132.34,132.32,10.8849192]
[1765060426832,0.69,132.34,132.33,3.32748269]
[1765060427145,0.69,132.34,132.33,10.8843481]
[1765060429646,4.01748269,132.34,132.31,23.86665958]
[1765060429828,0.69,132.34,132.31,7.55779558]
[1765060430035,0.69,132.33,132.31,7.55779558]
[1765060431244,0.69,132.33,132.3,10.88583223]
[1765060431441,0.69,132.33,132.3,7.55834954]
[1765060432753,11.57437206,132.33,132.27,22.22762589]
[1765060432946,11.57437206,132.33,132.28,7.55938652]
[1765060433250,0.66,132.32,132.28,7.55938652]
[1765060433630,3.98748269,132.32,132.28,7.55938652]
[1765060433831,0.66,132.31,132.28,7.55938652]
[1765060441357,0.66,132.31,132.28,10.88686921]
[1765060442350,0.66,132.31,132.28,12.7598573]
[1765060457445,0.71,132.32,132.29,5.42047078]
[1765060457644,0.71,132.32,132.3,5.20047078]
[1765060458069,0.71,132.32,132.29,17.95841128]
[1765060458463,0.71,132.32,132.3,7.55857898]
[1765060464381,0.71,132.32,132.29,7.55915035]
[1765060464673,8.26752511,132.32,132.27,37.38923024]
[1765060464873,8.26752511,132.32,132.27,58.68620631]
[1765060465085,0.67,132.31,132.27,58.68620631]
[1765060465960,0.67,132.31,132.28,5.20047078]
[1765060466273,0.67,132.31,132.27,58.68620631]
[1765060466673,8.22800872,132.31,132.27,50.36620631]
[1765060468758,8.22810753,132.31,132.27,50.36620631]
[1765060468959,0.67,132.3,132.27,50.36620631]
[1765060469272,0.67,132.3,132.28,5.20047078]
[1765060478588,0.67,132.3,132.27,50.14620631]
[1765060478774,0.67,132.3,132.27,50.36620631]
[1765060479480,0.67,132.3,132.28,5.20047078]
[1765060481876,13.42939698,132.3,132.24,24.10546974]
[1765060482078,13.42939698,132.3,132.25,7.56126834]
[1765060482278,5.87047078,132.29,132.24,7.56187149]
[1765060482470,5.87047078,132.29,132.24,12.76234227]
[1765060482667,0.67,132.28,132.25,5.20047078]
[1765060483204,0.67,132.28,132.24,12.76234227]
[1765060483489,5.87047078,132.28,132.23,23.8712151]
[1765060483877,8.23045918,132.27,132.23,23.8712151]
[1765060484269,0.67,132.26,132.23,23.8712151]
[1765060497201,0.67,132.26,132.23,29.07168588]
[1765060500897,0.67,132.26,132.23,37.39168588]
[1765060503503,8.32,132.28,132.24,12.76238323]
[1765060503504,15.8798701,132.28,132.24,12.76238323]
[1765060503687,0.66,132.28,132.25,5.20047078]
[1765060504420,0.66,132.28,132.25,3.32964298]
[1765060504889,0.66,132.28,132.24,33.81388998]
[1765060506305,8.21972213,132.28,132.24,33.59388998]
[1765060506489,11.54936511,132.28,132.24,7.56191245]
[1765060506695,0.66,132.27,132.24,7.56191245]
[1765060506891,0.66,132.27,132.23,46.57361954]
[1765060510721,0.66,132.27,132.23,49.90326252]
[1765060512894,0.66,132.27,132.24,3.32964298]
[1765060513097,0.66,132.27,132.25,3.32964298]
[1765060516014,0.66,132.27,132.24,30.3208691]
[1765060516211,0.66,132.27,132.24,26.77122612]
[1765060516391,0.66,132.27,132.23,23.87130285]
[1765060516592,0.66,132.27,132.23,35.52094583]
[1765060517608,8.22034052,132.27,132.23,35.52094583]
[1765060517814,0.66,132.26,132.23,35.52094583]
[1765060520922,0.66,132.26,132.23,38.85058881]
[1765060523012,0.66,132.26,132.23,35.52094583]
[1765060524820,0.66,132.26,132.23,38.85058881]
[1765060528825,0.66,132.26,132.23,35.52094583]
[1765060535237,0.66,132.26,132.23,38.85058881]
[1765060544039,0.66,132.26,132.23,35.52094583]
[1765060550244,0.66,132.26,132.23,38.85058881]
[1765060554266,11.55051736,132.26,132.22,0.1]
[1765060554427,3.32964298,132.24,132.22,0.1]
[1765060554627,0.72,132.23,132.22,0.1]
[1765060555723,4.04964298,132.23,132.22,0.1]
[1765060556233,11.61222333,132.23,132.22,0.1]
[1765060560357,34.32659016,132.23,132.22,0.1]
[1765060561956,11.61222333,132.23,132.22,0.1]
[1765060563553,8.28258035,132.23,132.22,0.1]
[1765060563759,16.60258035,132.23,132.22,0.1]
[1765060566256,8.28258035,132.23,132.22,0.1]
[1765060570360,13.4895921,132.23,132.22,0.1]
[1765060571661,0.72,132.23,132.22,0.1]
[1765060574468,8.28258035,132.23,132.22,0.1]
[1765060574631,9.04,132.24,132.22,0.1]
[1765060574952,8.28258035,132.23,132.22,0.1]
[1765060584166,13.4895921,132.23,132.22,0.1]
[1765060588664,0.72,132.23,132.22,0.1]
[1765060600172,8.28258035,132.23,132.22,0.1]
[1765060616211,0.72,132.23,132.22,0.1]
[1765060621427,8.25104271,132.26,132.22,5.52701175]
[1765060621613,16.57104271,132.26,132.22,5.52701175]
[1765060621816,16.57104271,132.26,132.23,0.22]
[1765060622125,9.01,132.26,132.23,5.42701175]
[1765060622323,8.32,132.26,132.24,5.20701175]
[1765060622530,8.32,132.27,132.25,5.20701175]
[1765060622832,8.32,132.27,132.26,5.20701175]
[1765060623608,8.32,132.27,132.26,12.76787671]
[1765060623803,0.69,132.29,132.26,7.56086496]
[1765060624014,9.01,132.29,132.26,7.78086496]
[1765060624501,9.01,132.29,132.26,12.98787671]
[1765060625302,7.55820849,132.31,132.27,5.20701175]
[1765060625508,8.99,132.3,132.27,5.42701175]
[1765060625710,8.99,132.3,132.27,5.20701175]
[1765060625903,8.3,132.3,132.27,5.20701175]
[1765060626099,8.3,132.3,132.27,12.76728023]
[1765060626401,8.99,132.3,132.28,3.32839645]
[1765060626603,8.3,132.3,132.29,3.32839645]
[1765060627224,8.99,132.3,132.29,3.32839645]
[1765060627615,8.99,132.32,132.29,3.54839645]
[1765060628120,8.99,132.32,132.3,3.32839645]
[1765060628426,0.69,132.31,132.3,3.32839645]
[1765060628806,0.69,132.31,132.29,10.88744526]
[1765060629010,8.99,132.32,132.29,11.10744526]
[1765060629214,8.3,132.32,132.29,10.88744526]
[1765060629526,0.69,132.31,132.29,10.88744526]
[1765060634026,0.69,132.31,132.28,19.40790759]
[1765060634229,0.69,132.31,132.28,10.88790759]
[1765060635217,8.3,132.32,132.29,3.32839645]
[1765060635738,0.69,132.31,132.29,3.32839645]
[1765060636736,0.69,132.31,132.3,3.32839645]
[1765060638940,0.69,132.31,132.29,10.887409]
[1765060643347,0.69,132.31,132.27,3.32839645]
[1765060643536,0.69,132.31,132.26,22.22952608]
[1765060643738,0.69,132.31,132.26,30.74952608]
[1765060643930,0.69,132.31,132.26,30.52952608]
[1765060644639,8.24821071,132.31,132.27,7.55995541]
[1765060644946,8.24821071,132.31,132.27,10.88835186]
[1765060645135,0.69,132.3,132.27,10.88835186]
[1765060648031,0.69,132.3,132.28,3.32839645]
[1765060648249,126.51809481,132.35,132.29,3.32839645]
[1765060648549,0.69,132.32,132.31,3.32839645]
[1765060648725,0.69,132.32,132.3,3.32839645]
[1765060649147,0.69,132.32,132.31,3.32839645]
[1765060649350,0.69,132.32,132.3,10.88697543]
[1765060650143,8.3,132.33,132.3,10.88697543]
[1765060650318,8.3,132.33,132.31,3.32839645]
[1765060650521,8.3,132.33,132.32,3.32839645]
[1765060650928,8.99,132.33,132.31,3.32839645]
[1765060651335,8.99,132.33,132.31,10.88607447]
[1765060654349,8.99,132.35,132.32,3.32839645]
[1765060654548,4.01839645,132.34,132.31,22.69031501]
[1765060654726,3.32839645,132.33,132.31,22.69031501]
[1765060654928,8.3,132.32,132.29,7.55879752]
[1765060655142,8.99,132.32,132.29,7.55879752]
[1765060655350,0.69,132.31,132.29,7.55879752]
[1765060656126,0.69,132.31,132.28,26.45850133]
[1765060659434,0.69,132.31,132.28,7.5597218]
[1765060661240,3.32839645,132.3,132.26,7.5604106]
[1765060661561,8.3,132.29,132.26,7.5604106]
[1765060661734,8.99,132.29,132.26,7.5604106]
[1765060662057,0.69,132.28,132.26,7.5604106]
[1765060662266,0.69,132.28,132.25,7.56143667]
[1765060676174,0.69,132.28,132.23,33.41880892]
[1765060676175,11.57822797,132.28,132.23,24.608864]
[1765060676384,11.57822797,132.28,132.23,23.87103244]
[1765060676678,0.71,132.27,132.23,23.87103244]
[1765060677481,0.71,132.27,132.23,24.09103244]
[1765060678162,0.71,132.27,132.23,27.41942889]
[1765060680279,7.55983152,132.28,132.24,10.89012151]
[1765060680479,3.32839645,132.3,132.24,7.78172506]
[1765060680686,0.71,132.27,132.24,11.11012151]
[1765060680856,0.71,132.27,132.24,7.56172506]
[1765060681062,0.71,132.27,132.23,35.31601652]
[1765060681063,0.71,132.27,132.23,42.87841759]
[1765060681371,0.71,132.27,132.24,3.32839645]
[1765060682286,8.27035905,132.27,132.24,3.32839645]
[1765060682656,0.71,132.26,132.24,3.32839645]
[1765060683081,16.5698659,132.28,132.25,0.22]
[1765060683269,16.5698659,132.28,132.25,3.54839645]
[1765060683469,16.5698659,132.28,132.25,3.32839645]
[1765060683670,16.5698659,132.28,132.24,7.78185408]
[1765060683671,9.01,132.28,132.24,7.78185408]
[1765060683901,9.01,132.28,132.25,3.32839645]
[1765060684063,8.3,132.28,132.25,3.32839645]
[1765060684260,0.71,132.27,132.25,3.32839645]
[1765060685786,0.71,132.27,132.24,3.32839645]
[1765060685960,0.71,132.27,132.24,10.89035798]
[1765060686476,0.71,132.27,132.24,12.76538678]
[1765060687688,0.71,132.27,132.24,12.98538678]
[1765060688668,0.71,132.27,132.24,12.76538678]
[1765060688868,8.2706717,132.27,132.23,21.51228925]
[1765060689290,0.71,132.26,132.23,21.51228925]
[1765060692889,0.71,132.26,132.23,29.07486691]
[1765060695186,0.71,132.26,132.23,29.29486691]
[1765060696087,0.71,132.26,132.23,29.07486691]
[1765060704190,8.27094847,132.26,132.23,29.07486691]
[1765060704679,0.72,132.25,132.23,29.07486691]
[1765060708600,7.56054713,132.27,132.23,29.07486691]
[1765060708783,0.72,132.25,132.23,29.07486691]
[1765060711901,0.72,132.25,132.24,5.20342525]
[1765060713435,0.72,132.25,132.23,29.07486691]
[1765060719510,7.56054713,132.27,132.23,29.07486691]
[1765060719709,0.72,132.28,132.26,5.20342525]
[1765060719899,0.72,132.29,132.27,5.20342525]
[1765060721386,0.72,132.29,132.28,5.20342525]
[1765060721583,15.8581225,132.31,132.28,5.20342525]
[1765060721881,0.72,132.3,132.28,5.20342525]
[1765060732400,0.72,132.3,132.27,7.56021924]
[1765060732724,0.72,132.3,132.28,5.20342525]
[1765060742637,0.72,132.3,132.29,5.20342525]
[1765060742839,0.72,132.3,132.29,12.98364449]
[1765060744232,7.55747134,132.32,132.29,12.98364449]
[1765060744433,15.85705537,132.33,132.31,5.20342525]
[1765060744627,0.71,132.32,132.31,5.20342525]
[1765060747434,16.56705537,132.33,132.31,5.20342525]
[1765060747752,9.01,132.33,132.32,5.20342525]
[1765060747918,8.3,132.33,132.32,5.20342525]
[1765060748447,8.3,132.33,132.32,3.32644429]
[1765060748621,9.01,132.33,132.32,3.32644429]
[1765060752736,9.01,132.33,132.31,3.32644429]
[1765060753020,0.71,132.32,132.31,3.32644429]
[1765060772744,8.3,132.33,132.31,10.88406428]
[1765060772950,9.02,132.33,132.32,3.32644429]
[1765060774258,9.02,132.33,132.32,7.55743651]
[1765060778747,9.02,132.33,132.31,30.24810597]
[1765060778950,0.72,132.32,132.3,10.88479377]
[1765060779470,0.72,132.32,132.3,19.90479377]
[1765060780176,0.72,132.32,132.3,16.57834948]
[1765060782572,0.72,132.32,132.3,19.90479377]
[1765060787961,0.72,132.32,132.3,16.57834948]
[1765060789849,0.72,132.32,132.3,19.90479377]
[1765060791483,0.72,132.32,132.3,16.57834948]
[1765060791689,0.72,132.32,132.3,19.90479377]
[1765060800206,0.72,132.32,132.3,16.57834948]
[1765060800520,0.72,132.32,132.29,16.308864]
[1765060800521,0.72,132.32,132.29,7.5590826]
[1765060800789,16.57752704,132.32,132.27,8.3]
[1765060801009,19.90397133,132.32,132.26,22.22772199]
[1765060801169,0.68,132.31,132.26,22.22772199]
[1765060801374,23.3788991,132.31,132.26,22.22772199]
[1765060801958,0.68,132.3,132.27,7.56029333]
[1765060802387,12.30644429,132.3,132.26,7.5606884]
[1765060802904,0.68,132.29,132.26,7.5606884]
[1765060808517,8.2391587,132.29,132.25,23.87011853]
[1765060809004,0.68,132.28,132.25,23.87011853]
[1765060811417,0.68,132.28,132.25,7.56125453]
[1765060814087,8.24000689,132.28,132.24,5.20241005]
[1765060814286,8.3,132.27,132.24,5.20241005]
[1765060814491,8.98,132.27,132.24,5.20241005]
[1765060814790,0.68,132.26,132.24,5.20241005]
[1765060815694,0.68,132.26,132.24,12.76433482]
[1765060816112,0.68,132.26,132.24,7.56192477]
[1765060817610,8.3,132.27,132.25,5.42241005]
[1765060817908,0.68,132.28,132.25,5.42241005]
[1765060818537,0.68,132.28,132.26,5.20241005]
[1765060820591,8.97,132.29,132.26,12.98309495]
[1765060821103,8.97,132.29,132.27,5.20241005]
[1765060821296,0.67,132.29,132.28,5.20241005]
[1765060821506,0.67,132.31,132.28,5.20241005]
[1765060821710,0.67,132.31,132.29,5.20241005]
[1765060824111,0.67,132.31,132.29,12.76152684]
[1765060828413,0.67,132.31,132.3,5.20241005]
[1765060860823,15.8570552,132.33,132.3,12.76068358]
[1765060860824,0.68,132.33,132.3,12.76068358]
[1765060861138,0.68,132.34,132.32,5.20241005]
[1765060861435,0.68,132.34,132.33,5.20241005]
[1765060868643,0.68,132.34,132.32,12.75966834]
[1765060870348,0.68,132.34,132.33,3.32611271]
[1765060889670,0.68,132.34,132.33,10.88297812]
[1765060917884,0.69,132.35,132.33,10.88297812]
[1765060919837,0.69,132.35,132.34,3.32611271]
[1765060922518,0.69,132.35,132.32,7.55736725]
[1765060922691,8.3,132.34,132.3,10.88436616]
[1765060923120,0.69,132.33,132.3,10.88436616]
[1765060924602,8.24697106,132.33,132.29,7.55892927]
[1765060924803,11.57308377,132.33,132.29,7.55892927]
[1765060925052,0.69,132.32,132.29,7.55892927]
[1765060925826,8.24754688,132.32,132.28,10.88570089]
[1765060926211,0.69,132.31,132.28,10.88570089]
[1765060926739,0.69,132.31,132.28,7.55958818]
[1765060927026,8.99,132.31,132.28,7.55958818]
[1765060927825,0.69,132.3,132.28,7.55958818]
[1765060950566,0.69,132.3,132.28,5.20111412]
[1765060951662,0.69,132.3,132.27,7.56029333]
[1765060951849,0.69,132.3,132.28,5.20111412]
[1765060956461,0.69,132.3,132.27,12.76140745]
[1765060977957,0.69,132.3,132.27,7.56029333]
[1765060978581,0.69,132.3,132.27,12.76140745]
[1765060982175,0.69,132.3,132.27,7.56029333]
[1765060982362,0.69,132.3,132.27,12.76140745]
[1765060983088,0.69,132.3,132.27,7.56029333]
[1765060985489,0.69,132.3,132.25,8.80994492]
[1765060985490,8.24884139,132.3,132.25,8.80994492]
[1765060985784,27.14528885,132.3,132.24,29.07177705]
[1765060985975,0.71,132.29,132.24,29.07177705]
[1765060986289,8.3,132.28,132.24,29.07177705]
[1765060986586,8.3,132.28,132.24,12.76291305]
[1765060986772,0.71,132.27,132.24,12.76291305]
[1765060987568,0.71,132.27,132.24,12.98291305]
[1765060988493,0.71,132.27,132.24,12.76291305]
[1765060992592,0.71,132.27,132.24,10.89175098]
[1765060998694,0.71,132.27,132.24,7.56179893]
[1765060998899,8.27036097,132.27,132.23,36.01118823]
[1765060999401,0.71,132.26,132.23,32.68123618]
[1765061006784,8.27120704,132.26,132.22,3.42995205]
[1765061007194,0.66,132.25,132.22,3.42995205]
[1765061007805,0.66,132.25,132.22,10.99305964]
[1765061008183,8.22156974,132.25,132.22,3.42995205]
[1765061008893,0.66,132.24,132.22,3.42995205]
[1765061010392,0.66,132.24,132.22,8.90994492]
[1765061010690,8.22223023,132.24,132.22,0.1]
[1765061011209,0.66,132.23,132.22,0.1]
[1765061013616,8.22258035,132.23,132.22,0.1]
[1765061023728,16.52258035,132.23,132.22,0.1]
[1765061027821,19.8525324,132.23,132.22,0.1]
[1765061028023,42.56346014,132.23,132.22,0.1]
[1765061029746,7.56429652,132.2,132.19,0.2]
[1765061029920,15.86429652,132.2,132.19,0.2]
[1765061030122,16.52429652,132.2,132.19,0.2]
[1765061030429,32.38859304,132.2,132.19,0.2]
[1765061030933,35.71854509,132.2,132.19,0.2]
[1765061033024,35.71854509,132.2,132.14,11.11764078]
[1765061033025,70.93815039,132.2,132.13,8.90994492]
[1765061033339,16.308864,132.17,132.13,8.90994492]